fUST/lending_fUST_20260103
["ID","MTS","AMOUNT","RATE_DAILY","PERIOD"]
[400369085,1767447349779,-257.81882913,0.0001246,2]
[400369086,1767447349813,-500.0,0.0001246,2]
[400369087,1767447349844,-500.0,0.0001246,2]
[400369088,1767447349878,-500.0,0.0001246,2]
[400369089,1767447349912,-500.0,0.0001246,2]
[400369090,1767447349944,-500.0,0.0001246,2]
[400369091,1767447349978,-500.0,0.0001246,2]
[400369092,1767447350012,-500.0,0.0001246,2]
[400369093,1767447350045,-236.41464896,0.0001246,2]
[400369094,1767447355949,-2748.73291231,0.00012335,2]
[400369095,1767447364176,288.5,0.00010003,2]
[400369096,1767447364716,432.74,0.00010457,2]
[400369097,1767447365206,576.99,0.00010912,2]
[400369098,1767447365695,-206.29728108,0.00012459,2]
[400369099,1767447365728,721.24,0.00011367,2]
[400369100,1767447366229,865.49,0.00011821,2]
[400369101,1767447366762,1009.73,0.00012276,2]
[400369102,1767447367838,-93.70271892,0.00012459,2]
[400369103,1767447367861,-182.21198243,0.00012459,2]
[400369104,1767447370880,-117.78801757,0.00012459,2]
[400369105,1767447370904,-263.58535104,0.0001246,2]
[400369106,1767447370929,-36.41464896,0.0001246,2]
[400369107,1767447397604,196.28854585,0.00028767,120]
[400369108,1767447404122,-208.03,0.000123,2]
[400369109,1767447404726,-221.0,0.000124,2]
[400369110,1767447420118,-418.13203878,0.0001246,2]
[400369111,1767447446406,216.64,0.00010659,2]
[400369112,1767447447003,324.96,0.00011143,2]
[400369113,1767447447513,433.28,0.00011627,2]
[400369114,1767447448026,541.6,0.00012112,2]
[400369115,1767447452819,150.7,0.000121,2]
[400369116,1767447479693,154.12,7.992e-05,2]
[400369117,1767447479889,154.12,7.992e-05,2]
[400369118,1767447480174,154.11,7.992e-05,2]
[400369119,1767447501974,-277.39278672,0.0001236,2]
[400369120,1767447504306,-277.39278668,0.0001236,2]
[400369121,1767447504328,-132.73969964,0.00012361,2]
[400369122,1767447506474,-144.65308704,0.00012361,2]
[400369123,1767447506497,-70.54054558,0.00012361,2]
[400369124,1767447508861,211.07,0.000121,2]
[400369125,1767447509765,-205.74623607,0.00012361,2]
[400369126,1767447511842,-1.10600503,0.00012361,2]
[400369127,1767447511865,-175.42399497,0.00012361,2]
[400369128,1767447514936,-101.96879171,0.00012361,2]
[400369129,1767447514960,-53.46120829,0.00012458,2]
[400369130,1767447517487,-182.13650057,0.00012458,2]
[400369131,1767447517515,-29.66163208,0.00012458,2]
[400369132,1767447518937,-251.01392967,0.00012458,2]
[400369133,1767447520679,-196.49940614,0.00012458,2]
[400369134,1767447522253,-22.82503211,0.00012458,2]
[400369135,1767447522278,-200.27496789,0.00012458,2]
[400369137,1767447525815,-250.35301802,0.00012458,2]
[400369138,1767447526597,182.5,0.00010659,2]
[400369139,1767447527109,273.75,0.00011144,2]
[400369140,1767447527620,365.0,0.00011628,2]
[400369141,1767447528154,456.25,0.00012113,2]
[400369142,1767447530249,-49.37201409,0.00012458,2]
[400369143,1767447530274,-134.25069235,0.00012458,2]
[400369144,1767447534146,-167.84760442,0.00012458,2]
[400369145,1767447573889,150.82,0.000121,2]
[400369146,1767447575828,1049.9,0.00028767,120]
[400369147,1767447606854,224.97,0.00011734,2]
[400369148,1767447612815,-223.1,0.00012245,2]
[400369149,1767447613498,-76.87,0.00012245,2]
[400369150,1767447664532,520.0,0.00012245,2]
[400369151,1767447688687,217.5,0.00011907,2]
[400369152,1767447690455,214.06,0.000122,2]
[400369153,1767447695940,-290.0,0.00012425,2]
[400369154,1767447702830,-192.45,0.00012456,2]
[400369155,1767447706885,-107.55,0.00012456,2]
[400369156,1767447706909,-500.0,0.00012457,2]
[400369157,1767447706934,-183.26190798,0.00012457,2]
[400369158,1767447710388,-316.73809202,0.00012457,2]
[400369159,1767447710414,-67.87365833,0.00012457,2]
[400369160,1767447769033,198.12,0.00011731,2]
[400369161,1767447776517,-264.16,0.00012241,2]
[400369162,1767447814033,152.22,0.000122,2]
[400369163,1767447849996,180.47,0.00011801,2]
[400369164,1767447857517,-240.63,0.00012314,2]
[400369165,1767447886995,10000.01,0.00011457,2]
[400369166,1767447887021,706.8937085,0.00011457,2]
[400369167,1767447912823,-504.50495067,0.00012329,2]
[400369168,1767447914397,-516.71581332,0.00012329,2]
[400369169,1767447918120,-502.00548885,0.00012329,2]
[400369170,1767447920211,-339.19355815,0.00012329,2]
[400369171,1767447921581,-392.3009956,0.00012329,2]
[400369172,1767447922877,-166.25903255,0.00012329,2]
[400369173,1767447928354,186.96,0.00011784,2]
[400369174,1767447929267,249.29,0.00012296,2]
[400369175,1767447930425,217.72,0.000121,2]
[400369214,1767448006769,170.31,0.00011724,2]
[400369215,1767448017804,-227.08,0.00012234,2]
[400369216,1767448017833,-17.34,0.00012329,2]
[400369217,1767448021898,-487.88,0.00012329,2]
[400369276,1767448052117,151.88,0.000121,2]
[400369277,1767448083995,155.13,0.00011694,2]
[400369278,1767448092738,-175.81545205,0.00012202,2]
[400369279,1767448102758,-31.03454795,0.00012202,2]
[400369280,1767448102950,175.81545205,0.00012123,2]
[400369282,1767448163407,188.42,0.00012152,2]
[400369283,1767448172593,221.71,0.000122,2]
[400369286,1767448198053,-208.60778142,0.00012355,2]
[400369287,1767448200119,533.5029129,0.00011755,2]
[400369288,1767448201385,300.0,0.00012354,2]
[400369289,1767448202202,300.0,0.00012354,2]
[400369290,1767448202657,300.0,0.00012354,2]
[400369292,1767448222900,208.60778142,0.00012355,2]
[400369301,1767448232190,-504.07830695,0.00012355,2]
[400369302,1767448232202,-3029.76356748,0.00012355,2]
[400369303,1767448232248,-1495.92169305,0.00012355,2]
[400369304,1767448232264,-17970.55164024,0.00012355,2]
[400369306,1767448232435,636.42458281,0.00012354,2]
[400369311,1767448232485,500.0,0.00012354,2]
[400369316,1767448232525,500.0,0.00012354,2]
[400369339,1767448233973,500.0,0.00012354,2]
[400369340,1767448234257,500.0,0.00012354,2]
[400369341,1767448234393,500.0,0.00012354,2]
[400369342,1767448234504,500.0,0.00012354,2]
[400369343,1767448234716,500.0,0.00012354,2]
[400369344,1767448234828,397.96708495,0.00012354,2]
[400369345,1767448234944,500.0,0.00012354,2]
[400369346,1767448235060,500.0,0.00012354,2]
[400369347,1767448235092,204.51955304,0.00012354,2]
[400369348,1767448235136,500.0,0.00012354,2]
[400369349,1767448235171,500.0,0.00012354,2]
[400369350,1767448235204,500.0,0.00012354,2]
[400369351,1767448235242,500.0,0.00012354,2]
[400369352,1767448235287,500.0,0.00012354,2]
[400369353,1767448235320,118.98808488,0.00012354,2]
[400369354,1767448235348,392.08716705,0.00012354,2]
[400369355,1767448235383,500.0,0.00012354,2]
[400369356,1767448235417,500.0,0.00012354,2]
[400369357,1767448235454,500.0,0.00012354,2]
[400369358,1767448235492,500.0,0.00012354,2]
[400369359,1767448235534,500.0,0.00012354,2]
[400369360,1767448235574,500.0,0.00012354,2]
[400369361,1767448235611,500.0,0.00012354,2]
[400369362,1767448235644,500.0,0.00012354,2]
[400369363,1767448235680,500.0,0.00012354,2]
[400369364,1767448235722,500.0,0.00012354,2]
[400369365,1767448235764,500.0,0.00012354,2]
[400369366,1767448235801,500.0,0.00012354,2]
[400369367,1767448235874,500.0,0.00012354,2]
[400369368,1767448235912,500.0,0.00012354,2]
[400369369,1767448235946,500.0,0.00012354,2]
[400369370,1767448235980,500.0,0.00012354,2]
[400369371,1767448236018,500.0,0.00012354,2]
[400369372,1767448236051,500.0,0.00012354,2]
[400369373,1767448236192,500.0,0.00012354,2]
[400369374,1767448236242,107.92283295,0.00012354,2]
[400369375,1767448236273,392.07716705,0.00012354,2]
[400369376,1767448236306,500.0,0.00012354,2]
[400369377,1767448236360,500.0,0.00012354,2]
[400369378,1767448236400,500.0,0.00012354,2]
[400369379,1767448236451,500.0,0.00012354,2]
[400369380,1767448236488,500.0,0.00012354,2]
[400369381,1767448236528,500.0,0.00012354,2]
[400369382,1767448236569,500.0,0.00012354,2]
[400369383,1767448236605,500.0,0.00012354,2]
[400369384,1767448236640,500.0,0.00012354,2]
[400369385,1767448236685,500.0,0.00012354,2]
[400369386,1767448236724,500.0,0.00012354,2]
[400369387,1767448236762,500.0,0.00012354,2]
[400369388,1767448236801,500.0,0.00012354,2]
[400369389,1767448236841,500.0,0.00012354,2]
[400369390,1767448236875,500.0,0.00012354,2]
[400369391,1767448236912,500.0,0.00012354,2]
[400369392,1767448236956,500.0,0.00012354,2]
[400369393,1767448237001,162.48405817,0.00012354,2]
[400369394,1767448237049,500.0,0.00012354,2]
[400369395,1767448237082,445.44877478,0.00012354,2]
[400369396,1767448237109,54.55122522,0.00012354,2]
[400369397,1767448237153,400.0,0.00012354,2]
[400369398,1767448237192,500.0,0.00012354,2]
[400369399,1767448237229,500.0,0.00012354,2]
[400369400,1767448237282,500.0,0.00012354,2]
[400369401,1767448237318,500.0,0.00012354,2]
[400369402,1767448237361,500.0,0.00012354,2]
[400369403,1767448237413,500.0,0.00012354,2]
[400369404,1767448237449,500.0,0.00012354,2]
[400369405,1767448237486,500.0,0.00012354,2]
[400369406,1767448237523,500.0,0.00012354,2]
[400369407,1767448237565,500.0,0.00012354,2]
[400369408,1767448237600,500.0,0.00012354,2]
[400369409,1767448237645,500.0,0.00012354,2]
[400369410,1767448237687,500.0,0.00012354,2]
[400369411,1767448237844,500.0,0.00012354,2]
[400369412,1767448237880,500.0,0.00012354,2]
[400369413,1767448237916,500.0,0.00012354,2]
[400369414,1767448237959,500.0,0.00012354,2]
[400369415,1767448237997,500.0,0.00012354,2]
[400369416,1767448238032,500.0,0.00012354,2]
[400369417,1767448238068,45.45877478,0.00012354,2]
[400369418,1767448238098,454.54122522,0.00012354,2]
[400369419,1767448238132,500.0,0.00012354,2]
[400369420,1767448238175,500.0,0.00012354,2]
[400369421,1767448238212,500.0,0.00012354,2]
[400369422,1767448238255,500.0,0.00012354,2]
[400369423,1767448238302,500.0,0.00012354,2]
[400369424,1767448238343,500.0,0.00012354,2]
[400369425,1767448238379,456.56902974,0.00012354,2]
[400369426,1767448238436,500.0,0.00012354,2]
[400369430,1767448238471,500.0,0.00012354,2]
[400369435,1767448238515,500.0,0.00012354,2]
[400369437,1767448238550,500.0,0.00012354,2]
[400369438,1767448238592,500.0,0.00012354,2]
[400369439,1767448238640,500.0,0.00012354,2]
[400369440,1767448238678,500.0,0.00012354,2]
[400369441,1767448238714,500.0,0.00012354,2]
[400369442,1767448238753,500.0,0.00012354,2]
[400369443,1767448238800,500.0,0.00012354,2]
[400369444,1767448238834,500.0,0.00012354,2]
[400369445,1767448238867,500.0,0.00012354,2]
[400369446,1767448239194,88.89974504,0.00012354,2]
[400369447,1767448239220,411.10025496,0.00012354,2]
[400369448,1767448239261,500.0,0.00012354,2]
[400369449,1767448239295,500.0,0.00012354,2]
[400369450,1767448239326,500.0,0.00012354,2]
[400369451,1767448239362,500.0,0.00012354,2]
[400369452,1767448239394,500.0,0.00012354,2]
[400369453,1767448239431,500.0,0.00012354,2]
[400369454,1767448239462,500.0,0.00012354,2]
[400369455,1767448239498,500.0,0.00012354,2]
[400369456,1767448239534,500.0,0.00012354,2]
[400369457,1767448239566,500.0,0.00012354,2]
[400369458,1767448239599,500.0,0.00012354,2]
[400369459,1767448239646,500.0,0.00012354,2]
[400369460,1767448239683,500.0,0.00012354,2]
[400369461,1767448239727,500.0,0.00012354,2]
[400369462,1767448239761,500.0,0.00012354,2]
[400369463,1767448239807,500.0,0.00012354,2]
[400369464,1767448239840,500.0,0.00012354,2]
[400369465,1767448239879,500.0,0.00012354,2]
[400369466,1767448239920,500.0,0.00012354,2]
[400369467,1767448239953,88.90974504,0.00012354,2]
[400369468,1767448239979,161.09025496,0.00012354,2]
[400369469,1767448240013,500.0,0.00012354,2]
[400369470,1767448240050,500.0,0.00012354,2]
[400369471,1767448240094,500.0,0.00012354,2]
[400369475,1767448240130,500.0,0.00012354,2]
[400369480,1767448240169,500.0,0.00012354,2]
[400369486,1767448240210,500.0,0.00012354,2]
[400369487,1767448240242,500.0,0.00012354,2]
[400369488,1767448240304,500.0,0.00012354,2]
[400369489,1767448240466,500.0,0.00012354,2]
[400369493,1767448240512,500.0,0.00012354,2]
[400369494,1767448240555,500.0,0.00012354,2]
[400369495,1767448241014,-410.19,0.00012355,2]
[400369496,1767448241026,-370.60755416,0.00012355,2]
[400369497,1767448241042,-1485.67731641,0.00012355,2]
[400369498,1767448241053,-2541.83438832,0.00012355,2]
[400369499,1767448241064,-886.6992,0.00012355,2]
[400369500,1767448241075,-544.79095787,0.00012355,2]
[400369501,1767448241086,-970551.2775941,0.00012355,2]
[400369502,1767448241095,-338.14216667,0.00012355,2]
[400369503,1767448241104,-594.0,0.00012355,2]
[400369504,1767448241114,-50000.0,0.00012453,2]
[400369505,1767448241123,-300.0,0.00012453,2]
[400369506,1767448241133,-1200.0,0.00012453,2]
[400369507,1767448241142,-205.4,0.00012453,2]
[400369508,1767448241151,-500.0,0.00012461,2]
[400369509,1767448241161,-151.0,0.000125,2]
[400369510,1767448241170,-151.0,0.000125,2]
[400369511,1767448241180,-151.0,0.000125,2]
[400369512,1767448241189,-151.0,0.000125,2]
[400369513,1767448241199,-151.0,0.000125,2]
[400369514,1767448241208,-151.0,0.000125,2]
[400369515,1767448241217,-221.71,0.000125,2]
[400369516,1767448241227,-999.0,0.00012549,2]
[400369517,1767448241237,-693.3115783,0.00012549,2]
[400369518,1767448241246,-500.0,0.00012735,2]
[400369519,1767448241259,-3886.37722191,0.0001282,2]
[400369520,1767448241268,-1132139.60333947,0.0001287,2]
[400369521,1767448241279,-221.71,0.000129,2]
[400369522,1767448241288,-299.99999901,0.00013,2]
[400369523,1767448241298,-500.0,0.00013009,2]
[400369524,1767448241308,-221.71,0.000132,2]
[400369525,1767448241318,-441.28107065,0.00013273,2]
[400369526,1767448241328,-500.0,0.00013273,2]
[400369527,1767448241339,-500.0,0.00013273,2]
[400369528,1767448241349,-500.0,0.00013273,2]
[400369529,1767448241358,-500.0,0.00013273,2]
[400369530,1767448241367,-500.55502892,0.00013273,2]
[400369531,1767448241377,-371.29616414,0.00013273,2]
[400369532,1767448241387,-530.84744,0.00013273,2]
[400369533,1767448241396,-500.0,0.00013273,2]
[400369534,1767448241406,-500.0,0.00013273,2]
[400369535,1767448241417,-500.35714375,0.00013273,2]
[400369536,1767448241427,-500.40812858,0.00013273,2]
[400369537,1767448241436,-500.48237545,0.00013273,2]
[400369538,1767448241446,-500.0,0.00013273,2]
[400369539,1767448241456,-500.0,0.00013273,2]
[400369540,1767448241466,-500.0,0.00013273,2]
[400369541,1767448241476,-500.74961065,0.00013273,2]
[400369542,1767448241486,-500.0,0.00013273,2]
[400369543,1767448241496,-179.25919058,0.00013273,2]
[400369544,1767448241505,-500.0,0.00013273,2]
[400369545,1767448241515,-500.91796421,0.00013273,2]
[400369546,1767448241525,-500.70079178,0.00013273,2]
[400369547,1767448241534,-161.79331584,0.00013273,2]
[400369548,1767448241543,-500.191811,0.00013273,2]
[400369549,1767448241553,-500.0,0.00013273,2]
[400369550,1767448241562,-500.0,0.00013273,2]
[400369551,1767448241572,-502.52676973,0.00013273,2]
[400369552,1767448241582,-489.45983528,0.00013273,2]
[400369553,1767448241592,-500.0,0.00013273,2]
[400369554,1767448241601,-500.0,0.00013273,2]
[400369555,1767448241612,-500.0,0.00013273,2]
[400369556,1767448241622,-500.0,0.00013273,2]
[400369557,1767448241632,-500.0,0.00013273,2]
[400369558,1767448241642,-500.0,0.00013273,2]
[400369559,1767448241651,-500.0,0.00013283,2]
[400369560,1767448241661,-6014.64117995,0.0001354,2]
[400369561,1767448241773,-291.78649388,0.00013557,2]
[400369562,1767448241783,-420.0,0.00013557,2]
[400369563,1767448241793,-221.71,0.000136,2]
[400369564,1767448241802,-1680.0,0.00013664,2]
[400369565,1767448241811,-300.0,0.00013673,2]
[400369566,1767448241820,-250.0,0.00013684,2]
[400369567,1767448241830,-500.0,0.00013698,2]
[400369568,1767448241841,-500.0,0.00013698,2]
[400369569,1767448241851,-450.1410394,0.00013698,2]
[400369570,1767448241860,-529.5136224,0.00013698,2]
[400369571,1767448241869,-191.60962152,0.00013698,2]
[400369572,1767448241879,-500.0,0.00013698,2]
[400369573,1767448241889,-500.0,0.00013698,2]
[400369574,1767448241899,-500.0,0.00013698,2]
[400369575,1767448241908,-500.0,0.00013698,2]
[400369576,1767448241918,-500.0,0.00013698,2]
[400369577,1767448241927,-500.0,0.00013698,2]
[400369578,1767448241936,-500.0,0.00013698,2]
[400369579,1767448241946,-500.0,0.00013698,2]
[400369580,1767448241956,-500.0,0.00013698,2]
[400369581,1767448241965,-500.0,0.00013698,2]
[400369582,1767448241975,-500.0,0.00013698,2]
[400369583,1767448241984,-500.0,0.00013698,2]
[400369584,1767448241993,-500.0,0.00013698,2]
[400369585,1767448242003,-500.0,0.00013698,2]
[400369586,1767448242013,-500.0,0.00013698,2]
[400369587,1767448242022,-500.0,0.00013698,2]
[400369588,1767448242031,-500.0,0.00013698,2]
[400369589,1767448242041,-500.0,0.00013698,2]
[400369590,1767448242051,-511.6918153,0.00013698,2]
[400369591,1767448242060,-1730.16,0.00013698,2]
[400369592,1767448242069,-1730.16,0.00013698,2]
[400369593,1767448242079,-1730.16,0.00013698,2]
[400369594,1767448242088,-1730.16,0.00013698,2]
[400369595,1767448242098,-1730.16,0.00013698,2]
[400369596,1767448242107,-1730.16,0.00013698,2]
[400369597,1767448242117,-1730.16,0.00013698,2]
[400369598,1767448242126,-1730.16,0.00013698,2]
[400369599,1767448242136,-1730.16,0.00013698,2]
[400369600,1767448242145,-1730.16,0.00013698,2]
[400369601,1767448242155,-1730.16,0.00013698,2]
[400369602,1767448242164,-1730.16,0.00013698,2]
[400369603,1767448242173,-1730.16,0.00013698,2]
[400369604,1767448242182,-1730.16,0.00013698,2]
[400369605,1767448242192,-1730.16,0.00013698,2]
[400369606,1767448242201,-1730.16,0.00013698,2]
[400369607,1767448242211,-1730.16,0.00013698,2]
[400369608,1767448242220,-1730.16,0.00013698,2]
[400369609,1767448242230,-1730.16,0.00013698,2]
[400369610,1767448242240,-1730.16,0.00013698,2]
[400369611,1767448242250,-1730.16,0.00013698,2]
[400369612,1767448242263,-1730.16,0.00013698,2]
[400369613,1767448242273,-1730.16,0.00013698,2]
[400369614,1767448242282,-1730.18390779,0.00013698,2]
[400369615,1767448242292,-540.00737412,0.00013698,2]
[400369616,1767448242302,-500.0,0.00013698,2]
[400369617,1767448242312,-500.0,0.00013698,2]
[400369618,1767448242321,-500.0,0.00013698,2]
[400369619,1767448242333,-500.0,0.00013698,2]
[400369620,1767448242343,-500.0,0.00013698,2]
[400369621,1767448242353,-500.0,0.00013698,2]
[400369622,1767448242362,-500.0,0.00013698,2]
[400369623,1767448242372,-500.0,0.00013698,2]
[400369624,1767448242382,-500.0,0.00013698,2]
[400369625,1767448242392,-500.0,0.00013698,2]
[400369626,1767448242402,-500.0,0.00013698,2]
[400369627,1767448242412,-500.0,0.00013698,2]
[400369628,1767448242421,-500.0,0.00013698,2]
[400369629,1767448242432,-500.0,0.00013698,2]
[400369630,1767448242443,-500.0,0.00013699,2]
[400369631,1767448242452,-152.47965923,0.00013699,2]
[400369632,1767448242462,-500.0,0.00013699,2]
[400369633,1767448242472,-409.51288327,0.00013699,2]
[400369634,1767448242482,-500.0,0.00013699,2]
[400369635,1767448242492,-500.0,0.00013699,2]
[400369636,1767448242502,-168.67407301,0.00013699,2]
[400369637,1767448242512,-500.0,0.00013699,2]
[400369638,1767448242523,-500.0,0.00013699,2]
[400369639,1767448242533,-150.17622078,0.00013699,2]
[400369640,1767448242543,-500.0,0.00013699,2]
[400369641,1767448242553,-505.70357448,0.00013699,2]
[400369642,1767448242563,-500.0,0.00013699,2]
[400369643,1767448242572,-500.0,0.00013699,2]
[400369644,1767448242582,-500.0,0.00013699,2]
[400369645,1767448242591,-500.0,0.00013699,2]
[400369646,1767448242601,-500.0,0.00013699,2]
[400369647,1767448242610,-504.2982278,0.00013699,2]
[400369648,1767448242619,-500.0,0.00013699,2]
[400369649,1767448242629,-500.0,0.00013699,2]
[400369650,1767448242638,-440.35279329,0.00013699,2]
[400369651,1767448242648,-500.0,0.00013699,2]
[400369652,1767448242657,-500.0,0.00013699,2]
[400369653,1767448242666,-500.0,0.00013699,2]
[400369654,1767448242676,-500.0,0.00013699,2]
[400369655,1767448242685,-500.0,0.00013699,2]
[400369656,1767448242696,-500.0,0.00013699,2]
[400369657,1767448242705,-500.0,0.00013699,2]
[400369658,1767448242715,-500.0,0.00013699,2]
[400369659,1767448242724,-500.0,0.00013699,2]
[400369660,1767448242734,-604.84296719,0.00013699,2]
[400369661,1767448242744,-500.0,0.00013699,2]
[400369662,1767448242754,-500.0,0.00013699,2]
[400369663,1767448242763,-500.0,0.00013699,2]
[400369664,1767448242773,-500.0,0.00013699,2]
[400369665,1767448242782,-500.0,0.00013699,2]
[400369666,1767448242791,-500.0,0.00013699,2]
[400369667,1767448242801,-266.65649314,0.0001371,2]
[400369668,1767448242811,-1078.85,0.00013721,2]
[400369669,1767448242820,-500.37577239,0.00013821,2]
[400369670,1767448242830,-1000.0,0.00013821,2]
[400369672,1767448242840,-1000.0,0.00013821,2]
[400369674,1767448242849,-1000.0,0.00013821,2]
[400369675,1767448242859,-1000.0,0.00013821,2]
[400369677,1767448242868,-1000.0,0.00013821,2]
[400369678,1767448242878,-1000.0,0.00013821,2]
[400369679,1767448242887,-1000.0,0.00013821,2]
[400369680,1767448242898,-1000.0,0.00013821,2]
[400369681,1767448242908,-1000.0,0.00013821,2]
[400369682,1767448242918,-1000.0,0.00013821,2]
[400369683,1767448242927,-1000.0,0.00013821,2]
[400369684,1767448242937,-1000.0,0.00013821,2]
[400369685,1767448242947,-370.97976049,0.00013821,2]
[400369686,1767448243045,-1000.0,0.00013821,2]
[400369687,1767448243055,-221.71,0.000139,2]
[400369688,1767448243065,-221.71,0.000142,2]
[400369689,1767448243074,-600.0,0.00014221,2]
[400369690,1767448243084,-303.83727218,0.00014247,2]
[400369691,1767448243093,-535.88655536,0.00014247,2]
[400369692,1767448243103,-1000.0,0.00014247,2]
[400369693,1767448243112,-1000.0,0.00014247,2]
[400369694,1767448243122,-1131.64054313,0.00014247,2]
[400369695,1767448243131,-1000.0,0.00014247,2]
[400369696,1767448243140,-1000.0,0.00014247,2]
[400369697,1767448243150,-172.99015439,0.00014247,2]
[400369698,1767448243159,-1000.0,0.00014247,2]
[400369699,1767448243169,-970.94631538,0.00014247,2]
[400369700,1767448243178,-1000.0,0.00014247,2]
[400369701,1767448243187,-1000.0,0.00014247,2]
[400369702,1767448243197,-1000.0,0.00014247,2]
[400369703,1767448243206,-1000.0,0.00014247,2]
[400369704,1767448243215,-1000.0,0.00014247,2]
[400369705,1767448243225,-1000.0,0.00014247,2]
[400369706,1767448243234,-1000.0,0.00014247,2]
[400369707,1767448243243,-981.40904469,0.00014247,2]
[400369708,1767448243255,-442.87105294,0.00014247,2]
[400369709,1767448243265,-576.38948379,0.00014247,2]
[400369710,1767448243275,-1000.0,0.00014247,2]
[400369711,1767448243284,-697.14280947,0.00014247,2]
[400369712,1767448243295,-781.48970977,0.00014247,2]
[400369713,1767448243304,-1000.0,0.00014247,2]
[400369714,1767448243314,-1000.0,0.00014247,2]
[400369715,1767448243325,-1000.0,0.00014247,2]
[400369716,1767448243334,-1000.0,0.00014247,2]
[400369717,1767448243343,-1000.0,0.00014247,2]
[400369718,1767448243353,-399.00775667,0.00014355,2]
[400369719,1767448243362,-1041.66666667,0.00014361,2]
[400369720,1767448243372,-1500.0,0.00014368,2]
[400369721,1767448243381,-1502.86490349,0.00014368,2]
[400369722,1767448243391,-1500.0,0.00014368,2]
[400369723,1767448243400,-1500.0,0.00014368,2]
[400369724,1767448243410,-1572.32659835,0.00014368,2]
[400369725,1767448243420,-1001.20972586,0.00014368,2]
[400369726,1767448243430,-1500.0,0.00014368,2]
[400369727,1767448243439,-1500.0,0.00014368,2]
[400369728,1767448243449,-1500.0,0.00014368,2]
[400369729,1767448243458,-1500.0,0.00014368,2]
[400369730,1767448243468,-1500.0,0.00014368,2]
[400369731,1767448243478,-1500.0,0.00014368,2]
[400369732,1767448243488,-1500.0,0.00014368,2]
[400369733,1767448243497,-1307.68196875,0.00014378,2]
[400369734,1767448243507,-221.71,0.000146,2]
[400369735,1767448243517,-737.36429423,0.00014768,2]
[400369736,1767448243526,-1501.34335094,0.00014795,2]
[400369737,1767448243536,-1000.0,0.00014795,2]
[400369738,1767448243546,-1500.0,0.00014795,2]
[400369740,1767448243555,-1500.0,0.00014795,2]
[400369741,1767448243565,-152.42,0.0001486,2]
[400369742,1767448243574,-587.0,0.00014877,2]
[400369743,1767448243584,-100000.0,0.00014882,2]
[400369744,1767448243593,-221.71,0.000149,2]
[400369745,1767448243603,-673.31490018,0.00014916,2]
[400369746,1767448243613,-500.0,0.00014916,2]
[400369747,1767448243622,-500.0,0.00014916,2]
[400369748,1767448243632,-2122.72672579,0.00014916,2]
[400369749,1767448243641,-2000.0,0.00014916,2]
[400369750,1767448243651,-410.0,0.00014993,2]
[400369751,1767448243660,-1000.0,0.00015,2]